fUST/lending_fUST_20241102
["ID","MTS","AMOUNT","RATE_DAILY","PERIOD"]
[341158771,1730485841774,-500.0,0.00033424,2]
[341158772,1730485841788,-296.53254751,0.00033424,4]
[341158773,1730485841797,-1857.48,0.00033424,120]
[341158774,1730485841806,-500.0,0.00033424,4]
[341158775,1730485841815,-1192.83,0.00033424,4]
[341158776,1730485841827,-500.0,0.00033424,4]
[341158777,1730485841838,-500.0,0.00033424,4]
[341158778,1730485841847,-500.0,0.00033424,4]
[341158779,1730485841858,-802.07,0.00033424,4]
[341158780,1730485841868,-565.71,0.00033424,4]
[341158781,1730485841885,-500.0,0.00033424,4]
[341158782,1730485841896,-500.0,0.00033424,4]
[341158783,1730485841906,-500.0,0.00033424,4]
[341158784,1730485841915,-1136.03,0.00033424,4]
[341158785,1730485841926,-1155.99,0.00033424,4]
[341158786,1730485842060,-592.3,0.00033424,4]
[341158787,1730485842092,-500.0,0.00033424,4]
[341158788,1730485842102,-500.0,0.00033424,4]
[341158789,1730485842112,-500.0,0.00033424,4]
[341158790,1730485842123,-500.0,0.00033424,4]
[341158791,1730485842133,-500.0,0.00033424,4]
[341158792,1730485842143,-500.0,0.00033424,4]
[341158793,1730485842154,-404.77185286,0.00033424,4]
[341158794,1730485842163,-500.0,0.00033424,4]
[341158795,1730485842173,-500.0,0.00033424,4]
[341158796,1730485842182,-500.0,0.00033425,4]
[341158797,1730485842192,-500.0,0.00033425,4]
[341158798,1730485842201,-500.0,0.00033425,4]
[341158799,1730485842211,-500.0,0.00033425,4]
[341158800,1730485842220,-500.0,0.00033425,4]
[341158801,1730485842229,-500.0,0.00033425,4]
[341158802,1730485842239,-500.0,0.00033425,4]
[341158803,1730485842250,-418.07890609,0.00033425,4]
[341158804,1730485842260,-500.0,0.00033425,4]
[341158805,1730485842269,-500.0,0.00033425,4]
[341158806,1730485842282,-500.0,0.00033425,4]
[341158807,1730485842291,-500.0,0.00033425,4]
[341158808,1730485842301,-500.0,0.00033425,4]
[341158809,1730485842312,-500.0,0.00033425,4]
[341158810,1730485842321,-500.0,0.00033425,4]
[341158811,1730485842332,-638.20402695,0.00033425,4]
[341158812,1730485842342,-500.0,0.00033425,4]
[341158813,1730485842354,-267.70940354,0.00033425,7]
[341158814,1730485842364,-500.0,0.00033425,4]
[341158815,1730485842374,-500.0,0.00033425,4]
[341158816,1730485842383,-500.0,0.00033425,4]
[341158817,1730485842392,-500.0,0.00033426,4]
[341158818,1730485842401,-500.0,0.00033426,4]
[341158819,1730485842410,-2414.83,0.00033426,4]
[341158820,1730485842421,-918.9,0.00033426,4]
[341158821,1730485842430,-500.0,0.00033426,4]
[341158822,1730485842440,-1133.24,0.00033426,4]
[341158823,1730485842449,-517.03,0.00033426,4]
[341158824,1730485842459,-500.0,0.00033426,4]
[341158825,1730485842468,-500.0,0.00033426,4]
[341158826,1730485842479,-500.0,0.00033696,4]
[341158827,1730485842489,-1112.69,0.00033696,4]
[341158828,1730485842498,-500.0,0.00033696,4]
[341158829,1730485842508,-500.0,0.00033696,4]
[341158830,1730485842519,-500.0,0.00033696,4]
[341158831,1730485842528,-5537.16,0.00033696,4]
[341158832,1730485842538,-500.0,0.00033696,4]
[341158833,1730485842549,-7255.78,0.00033696,3]
[341158834,1730485842559,-500.0,0.00033696,4]
[341158835,1730485842569,-1888.17,0.00033696,4]
[341158836,1730485842579,-928.95,0.00033696,4]
[341158837,1730485842588,-500.0,0.00033697,4]
[341158838,1730485842597,-500.0,0.00033697,4]
[341158839,1730485842607,-500.0,0.00033697,4]
[341158840,1730485842617,-583.9,0.00033697,4]
[341158841,1730485842626,-500.0,0.00033697,4]
[341158842,1730485842636,-500.0,0.00033697,4]
[341158843,1730485842645,-500.0,0.00033697,4]
[341158844,1730485842655,-500.0,0.00033697,4]
[341158845,1730485842664,-500.0,0.00033697,4]
[341158846,1730485842673,-1196.56,0.00033697,4]
[341158847,1730485842683,-500.0,0.00033697,4]
[341158848,1730485842692,-5705.74,0.00033697,4]
[341158849,1730485842701,-500.0,0.00033697,4]
[341158850,1730485842711,-500.0,0.00033697,4]
[341158851,1730485842721,-1575.4,0.00033697,4]
[341158852,1730485842738,-500.0,0.00033697,4]
[341158853,1730485842751,-1131.85,0.00033697,4]
[341158854,1730485842760,-1186.39,0.00033697,4]
[341158855,1730485842770,-500.0,0.00033698,4]
[341158856,1730485842783,-500.0,0.00033698,4]
[341158857,1730485842792,-500.0,0.00033698,4]
[341158858,1730485842801,-500.0,0.00033698,4]
[341158859,1730485842811,-523.4162941,0.00033698,4]
[341158860,1730485842821,-500.0,0.00033698,4]
[341158861,1730485842830,-465.50525514,0.00033698,4]
[341158862,1730485842840,-500.0,0.00033698,2]
[341158863,1730485842849,-1857.48,0.00033698,120]
[341158864,1730485842861,-500.0,0.00033698,4]
[341158865,1730485842870,-1192.83,0.00033698,4]
[341158866,1730485842879,-500.0,0.00033698,4]
[341158867,1730485842888,-500.0,0.00033698,4]
[341158868,1730485842898,-500.0,0.00033698,4]
[341158869,1730485842908,-802.07,0.00033698,4]
[341158870,1730485842918,-565.71,0.00033698,4]
[341158871,1730485842927,-500.0,0.00033698,4]
[341158872,1730485842937,-500.0,0.00033698,4]
[341158873,1730485842947,-500.0,0.00033698,4]
[341158874,1730485842956,-1136.03,0.00033698,4]
[341158875,1730485842966,-1155.99,0.00033698,4]
[341158876,1730485842977,-592.3,0.00033698,4]
[341158877,1730485842987,-500.0,0.00033698,4]
[341158878,1730485842996,-500.0,0.00033698,4]
[341158879,1730485843005,-500.0,0.00033698,4]
[341158880,1730485843015,-500.0,0.00033698,4]
[341158881,1730485843025,-500.0,0.00033698,4]
[341158882,1730485843034,-500.0,0.00033698,4]
[341158883,1730485843044,-500.0,0.00033698,4]
[341158884,1730485843053,-500.0,0.00033699,4]
[341158885,1730485843062,-500.0,0.00033699,4]
[341158886,1730485843072,-500.0,0.00033699,4]
[341158887,1730485843081,-500.0,0.00033699,4]
[341158888,1730485843091,-500.0,0.00033699,4]
[341158889,1730485843100,-500.0,0.00033699,4]
[341158890,1730485843109,-500.0,0.00033699,4]
[341158891,1730485843119,-500.0,0.00033699,4]
[341158892,1730485843128,-500.0,0.00033699,4]
[341158893,1730485843138,-500.0,0.00033699,4]
[341158894,1730485843147,-500.0,0.00033699,4]
[341158895,1730485843156,-500.0,0.00033699,4]
[341158896,1730485843166,-500.0,0.00033699,4]
[341158897,1730485843175,-500.0,0.00033699,4]
[341158898,1730485843184,-500.0,0.00033699,4]
[341158899,1730485843193,-500.0,0.00033699,4]
[341158900,1730485843203,-500.0,0.00033699,4]
[341158901,1730485843211,-500.0,0.000337,4]
[341158902,1730485843221,-500.0,0.000337,4]
[341158903,1730485843230,-2414.83,0.000337,4]
[341158904,1730485843240,-918.9,0.000337,4]
[341158905,1730485843250,-500.0,0.000337,4]
[341158906,1730485843259,-1133.24,0.000337,4]
[341158907,1730485843268,-517.03,0.000337,4]
[341158908,1730485843277,-500.0,0.000337,4]
[341158909,1730485843286,-500.0,0.000337,4]
[341158910,1730485843296,-500.0,0.0003397,4]
[341158911,1730485843305,-1112.69,0.0003397,4]
[341158912,1730485843314,-500.0,0.0003397,4]
[341158913,1730485843324,-500.0,0.0003397,4]
[341158914,1730485843333,-500.0,0.0003397,4]
[341158915,1730485843342,-5537.16,0.0003397,4]
[341158916,1730485843351,-500.0,0.0003397,4]
[341158917,1730485843360,-7255.78,0.0003397,3]
[341158918,1730485843369,-169.52441115,0.0003397,4]
[341158919,1730485843378,-1888.17,0.0003397,4]
[341158920,1730485843387,-928.95,0.0003397,4]
[341158921,1730485843396,-500.0,0.00033971,4]
[341158923,1730485843406,-500.0,0.00033971,4]
[341158925,1730485843415,-362.40500026,0.00033971,4]
[341158926,1730485843425,-583.9,0.00033971,4]
[341158927,1730485843434,-500.0,0.00033971,4]
[341158928,1730485843443,-500.0,0.00033971,4]
[341158929,1730485843453,-500.0,0.00033971,4]
[341158930,1730485843463,-193.58253074,0.00033971,4]
[341158931,1730485843473,-500.0,0.00033971,4]
[341158933,1730485843483,-1196.56,0.00033971,4]
[341158935,1730485843492,-500.0,0.00033971,4]
[341158936,1730485843502,-5705.74,0.00033971,4]
[341158937,1730485843511,-500.0,0.00033971,4]
[341158938,1730485843521,-500.0,0.00033971,4]
[341158939,1730485843531,-1575.4,0.00033971,4]
[341158940,1730485843541,-1131.85,0.00033971,4]
[341158941,1730485843550,-1186.39,0.00033971,4]
[341158943,1730485843559,-500.0,0.00033972,4]
[341158944,1730485843569,-500.0,0.00033972,4]
[341158946,1730485843578,-500.0,0.00033972,4]
[341158948,1730485843587,-500.0,0.00033972,4]
[341158950,1730485843596,-500.0,0.00033972,4]
[341158952,1730485843606,-500.0,0.00033972,2]
[341158954,1730485843615,-1857.48,0.00033972,120]
[341158956,1730485843624,-500.0,0.00033972,4]
[341158958,1730485843634,-1192.83,0.00033972,4]
[341158960,1730485843643,-500.0,0.00033972,4]
[341158963,1730485843662,-500.0,0.00033972,4]
[341158965,1730485843673,-500.0,0.00033972,4]
[341158967,1730485843682,-802.07,0.00033972,4]
[341158969,1730485843693,-565.71,0.00033972,4]
[341158970,1730485843703,-500.0,0.00033972,4]
[341158972,1730485843712,-500.0,0.00033972,4]
[341158973,1730485843721,-500.0,0.00033972,4]
[341158974,1730485843732,-1136.03,0.00033972,4]
[341158975,1730485843742,-1155.99,0.00033972,4]
[341158976,1730485843752,-592.3,0.00033972,4]
[341158977,1730485843762,-500.0,0.00033972,4]
[341158978,1730485843772,-500.0,0.00033972,4]
[341158979,1730485843786,-500.0,0.00033972,4]
[341158980,1730485843796,-500.0,0.00033972,4]
[341158981,1730485843805,-500.0,0.00033972,4]
[341158982,1730485843814,-500.0,0.00033972,4]
[341158983,1730485843825,-500.0,0.00033972,4]
[341158984,1730485843834,-500.0,0.00033973,4]
[341158985,1730485843846,-500.0,0.00033973,4]
[341158986,1730485843858,-265.95541488,0.00033973,4]
[341158987,1730485843868,-500.0,0.00033973,4]
[341158988,1730485843878,-500.0,0.00033973,4]
[341158989,1730485843888,-500.0,0.00033973,4]
[341158990,1730485843897,-500.0,0.00033973,4]
[341158991,1730485843907,-500.0,0.00033973,4]
[341158992,1730485843917,-500.0,0.00033973,4]
[341158993,1730485843927,-500.0,0.00033973,4]
[341158994,1730485843937,-500.0,0.00033973,4]
[341158996,1730485843948,-500.0,0.00033973,4]
[341158997,1730485843958,-500.0,0.00033973,4]
[341158998,1730485843970,-500.0,0.00033973,4]
[341158999,1730485843982,-500.0,0.00033973,4]
[341159000,1730485843992,-500.0,0.00033973,4]
[341159001,1730485844003,-500.0,0.00033973,4]
[341159002,1730485844013,-500.0,0.00033974,4]
[341159003,1730485844023,-642.05748978,0.00033974,4]
[341159004,1730485844034,-2414.83,0.00033974,4]
[341159005,1730485844045,-918.9,0.00033974,4]
[341159006,1730485844055,-500.0,0.00033974,4]
[341159007,1730485844065,-1133.24,0.00033974,4]
[341159008,1730485844076,-517.03,0.00033974,4]
[341159009,1730485844085,-500.0,0.00033974,4]
[341159010,1730485844095,-500.0,0.00033974,4]
[341159011,1730485844106,-500.0,0.00034244,4]
[341159012,1730485844116,-1112.69,0.00034244,4]
[341159013,1730485844126,-500.0,0.00034244,4]
[341159014,1730485844136,-500.0,0.00034244,4]
[341159015,1730485844145,-500.0,0.00034244,4]
[341159016,1730485844155,-5537.16,0.00034244,4]
[341159017,1730485844165,-500.0,0.00034244,4]
[341159018,1730485844175,-7255.78,0.00034244,3]
[341159019,1730485844184,-1888.17,0.00034244,4]
[341159020,1730485844193,-928.95,0.00034244,4]
[341159021,1730485844203,-500.0,0.00034245,4]
[341159022,1730485844212,-500.0,0.00034245,4]
[341159023,1730485844222,-583.9,0.00034245,4]
[341159024,1730485844234,-500.0,0.00034245,4]
[341159025,1730485844246,-559.09846336,0.00034245,4]
[341159026,1730485844258,-500.0,0.00034245,4]
[341159027,1730485844267,-500.0,0.00034245,4]
[341159028,1730485844280,-1196.56,0.00034245,4]
[341159029,1730485844290,-500.0,0.00034245,4]
[341159030,1730485844300,-5705.74,0.00034245,4]
[341159031,1730485844310,-500.0,0.00034245,4]
[341159032,1730485844320,-500.0,0.00034245,4]
[341159033,1730485844330,-1575.4,0.00034245,4]
[341159034,1730485844340,-1131.85,0.00034245,4]
[341159035,1730485844350,-234.12273799,0.00034245,4]
[341159036,1730485844421,-500.0,0.00034245,4]
[341159042,1730485846772,-452.26726201,0.00034245,4]
[341159043,1730485846787,-240.73273799,0.00034246,4]
[341159044,1730485846798,-259.26726201,0.00034246,4]
[341159045,1730485846808,-137.54380988,0.00034246,4]
[341159046,1730485846819,-355.66427784,0.00034246,4]
[341159047,1730485846831,-6.79191228,0.00034246,4]
[341159048,1730485846841,-393.20808772,0.00034246,4]
[341159051,1730486277587,165.31025,0.00013973,2]
[341159053,1730486777499,40000.48000081,0.0003323,120]
[341159055,1730486796137,-151.0,0.0003,120]
[341159056,1730486796161,-151.0,0.00031041,120]
[341159057,1730486796183,-120.90158408,0.00031107,2]
[341159059,1730486842327,160.34435,0.00013973,2]
[341159206,1730487040020,-292.404059,0.00031181,2]
[341159208,1730487040029,-403.5507888,0.000313,2]
[341159211,1730487040041,-2319.4562229,0.000313,2]
[341159213,1730487040053,-1145.4182331,0.000313,2]
[341159215,1730487040063,-292.404059,0.00031866,2]
[341159217,1730487040073,-151.0,0.00032082,120]
[341159219,1730487040082,-292.404059,0.00032551,2]
[341159221,1730487040091,-1037.665926,0.00032877,120]
[341159222,1730487040101,-328.0,0.00033043,2]
[341159224,1730487040110,-164.10306704,0.00033044,2]
[341159226,1730487040120,-159.3782394,0.00033045,2]
[341159229,1730487040131,-151.0,0.00033123,120]
[341159231,1730487040141,-788.74,0.00033135,3]
[341159233,1730487040151,-300.0,0.00033142,2]
[341159235,1730487040160,-500.0,0.00033143,4]
[341159237,1730487040170,-947.09,0.00033143,4]
[341159239,1730487040179,-500.0,0.00033143,4]
[341159241,1730487040187,-500.0,0.00033143,4]
[341159243,1730487040197,-500.0,0.00033143,4]
[341159245,1730487040206,-4425.25,0.00033143,4]
[341159247,1730487040216,-500.0,0.00033143,4]
[341159249,1730487040226,-5744.16,0.00033143,3]
[341159251,1730487040237,-3775.186531,0.00033143,120]
[341159253,1730487040246,-1616.23,0.00033143,4]
[341159255,1730487040256,-781.19,0.00033143,4]
[341159258,1730487040273,-500.0,0.00033143,4]
[341159260,1730487040286,-500.0,0.00033144,4]
[341159263,1730487040298,-500.0,0.00033144,4]
[341159265,1730487040310,-405.46832262,0.00033144,4]
[341159267,1730487040320,-536.33606303,0.00033144,4]
[341159269,1730487040333,-500.0,0.00033144,4]
[341159271,1730487040343,-508.59076586,0.00033144,4]
[341159273,1730487040355,-507.42050258,0.00033144,4]
[341159275,1730487040365,-500.0,0.00033144,4]
[341159277,1730487040374,-500.0,0.00033144,4]
[341159279,1730487040384,-503.58296137,0.00033144,4]
[341159281,1730487040394,-507.32180246,0.00033144,4]
[341159283,1730487040403,-501.71184567,0.00033144,4]
[341159284,1730487040414,-504.59469775,0.00033144,4]
[341159285,1730487040424,-500.0,0.00033144,4]
[341159286,1730487040434,-504.26874824,0.00033144,4]
[341159287,1730487040446,-500.0,0.00033144,4]
[341159288,1730487040457,-500.0,0.00033144,4]
[341159289,1730487040468,-527.14265424,0.00033144,4]
[341159290,1730487040477,-501.91972121,0.00033144,4]
[341159291,1730487040488,-500.0,0.00033144,4]
[341159292,1730487040498,-500.0,0.00033144,4]
[341159293,1730487040507,-500.0,0.00033144,4]
[341159294,1730487040517,-500.0,0.00033144,4]
[341159295,1730487040527,-500.0,0.00033144,4]
[341159296,1730487040537,-501.0,0.00033144,4]
[341159297,1730487040549,-500.0,0.00033144,4]
[341159298,1730487040559,-502.73091166,0.00033144,4]
[341159299,1730487040569,-500.0,0.00033144,4]
[341159300,1730487040578,-502.73674925,0.00033144,4]
[341159301,1730487040588,-500.0,0.00033144,4]
[341159302,1730487040601,-500.0,0.00033144,4]
[341159303,1730487040613,-503.50230585,0.00033144,4]
[341159304,1730487040623,-500.0,0.00033144,4]
[341159305,1730487040635,-328.59,0.00033144,4]
[341159306,1730487040646,-500.0,0.00033144,4]
[341159307,1730487040658,-500.0,0.00033144,4]
[341159308,1730487040669,-500.0,0.00033144,4]
[341159309,1730487040679,-500.0,0.00033144,4]
[341159310,1730487040688,-500.0,0.00033144,4]
[341159311,1730487040698,-500.0,0.00033144,4]
[341159312,1730487040708,-506.3757007,0.00033144,4]
[341159313,1730487040718,-502.78070881,0.00033144,4]
[341159314,1730487040730,-501.82290906,0.00033144,4]
[341159315,1730487040739,-516.45610207,0.00033144,4]
[341159316,1730487040749,-500.0,0.00033144,4]
[341159317,1730487040758,-500.0,0.00033144,4]
[341159318,1730487040767,-83.14802018,0.00033144,4]
[341159319,1730487040781,-416.85197982,0.00033144,4]
[341159320,1730487040791,-219.24861906,0.00033144,4]
[341159321,1730487040802,-280.75138094,0.00033144,4]
[341159322,1730487040811,-301.29465014,0.00033144,4]
[341159323,1730487040823,-198.70534986,0.00033144,4]
[341159324,1730487040832,-500.0,0.00033144,4]
[341159325,1730487040841,-504.89,0.00033144,4]
[341159326,1730487040851,-500.0,0.00033144,4]
[341159327,1730487040861,-500.0,0.00033144,4]
[341159328,1730487040870,-500.0,0.00033144,4]
[341159329,1730487040883,-500.0,0.00033144,4]
[341159330,1730487040892,-501.36152025,0.00033144,4]
[341159331,1730487040901,-500.0,0.00033144,4]
[341159332,1730487040911,-500.0,0.00033144,4]
[341159333,1730487040921,-500.0,0.00033144,4]
[341159334,1730487040931,-437.23019936,0.00033144,4]
[341159335,1730487040940,-308.93068036,0.00033144,4]
[341159336,1730487040949,-343.63770537,0.00033144,4]
[341159363,1730487043065,-500.0,0.00033142,4]
[341159364,1730487043076,-222.76903338,0.00033144,4]
[341159365,1730487043088,-500.0,0.00033144,4]
[341159367,1730487043097,-500.0,0.00033144,4]
[341159368,1730487043106,-500.0,0.00033144,4]
[341159371,1730487043116,-502.82319273,0.00033144,4]
[341159373,1730487043125,-500.0,0.00033144,4]
[341159375,1730487043134,-500.0,0.00033144,4]
[341159377,1730487043144,-500.0,0.00033144,4]
[341159379,1730487043155,-500.0,0.00033144,4]
[341159381,1730487043165,-500.0,0.00033144,4]
[341159383,1730487043174,-947.28,0.00033144,4]
[341159384,1730487043183,-197.88685316,0.00033144,4]
[341159385,1730487043258,-46.9890649,0.00033144,4]
[341159386,1730487043362,-256.02589317,0.00033144,4]
[341159387,1730487043372,-500.0,0.00033144,4]
[341159388,1730487043382,-500.0,0.00033144,4]
[341159389,1730487043391,-504.95138216,0.00033144,4]
[341159390,1730487043400,-495.79492697,0.00033144,4]
[341159391,1730487043412,-4.20507303,0.00033144,4]
[341159392,1730487043422,-500.0,0.00033144,4]
[341159393,1730487043431,-500.0,0.00033144,4]
[341159394,1730487043440,-383.84189359,0.00033144,4]
[341159395,1730487043453,-116.15810641,0.00033144,4]
[341159396,1730487043462,-300.0,0.00033144,4]
[341159397,1730487043471,-500.0,0.00033144,4]
[341159398,1730487043480,-500.0,0.00033144,4]
[341159399,1730487043490,-500.0,0.00033144,4]
[341159400,1730487043500,-500.0,0.00033144,4]
[341159401,1730487043510,-500.0,0.00033144,4]
[341159402,1730487043520,-500.0,0.00033144,4]
[341159403,1730487043529,-500.0,0.00033144,4]
[341159404,1730487043538,-500.0,0.00033144,4]
[341159405,1730487043548,-500.0,0.00033144,4]
[341159406,1730487043558,-500.0,0.00033144,4]
[341159407,1730487043567,-501.67857467,0.00033144,4]
[341159408,1730487043577,-500.0,0.00033144,4]
[341159409,1730487043586,-500.0,0.00033144,4]
[341159410,1730487043596,-500.0,0.00033144,4]
[341159411,1730487043606,-4517.04,0.00033144,4]
[341159412,1730487043615,-500.0,0.00033144,4]
[341159413,1730487043625,-583.52431822,0.00033144,4]
[341159414,1730487043635,-1288.86,0.00033144,4]
[341159415,1730487043645,-500.0,0.00033144,4]
[341159416,1730487043655,-502.66061074,0.00033144,4]
[341159417,1730487043665,-500.0,0.00033144,4]
[341159418,1730487043675,-503.42407765,0.00033144,4]
[341159419,1730487043684,-500.0,0.00033144,4]
[341159420,1730487043694,-500.0,0.00033144,4]
[341159421,1730487043703,-500.0,0.00033144,4]
[341159422,1730487043714,-509.41385329,0.00033144,4]
[341159423,1730487043723,-500.0,0.00033144,4]
[341159424,1730487043733,-896.05,0.00033144,4]
[341159425,1730487043742,-500.0,0.00033144,4]
[341159426,1730487043752,-500.0,0.00033144,4]
[341159427,1730487043761,-501.2710608,0.00033144,4]
[341159428,1730487043770,-500.0,0.00033144,4]
[341159429,1730487043779,-500.0,0.00033144,4]
[341159430,1730487043788,-500.0,0.00033144,4]
[341159431,1730487043798,-500.0,0.00033144,4]
[341159432,1730487043807,-500.0,0.00033144,4]
[341159433,1730487043817,-500.0,0.00033144,4]
[341159434,1730487043828,-500.0,0.00033144,4]
[341159435,1730487043837,-500.0,0.00033144,4]
[341159436,1730487043847,-501.70082091,0.00033144,4]
[341159437,1730487043980,-299.26759721,0.00033144,4]
[341159438,1730487043990,-500.0,0.00033144,4]
[341159439,1730487044000,-500.0,0.00033144,4]
[341159440,1730487044010,-500.0,0.00033144,4]
[341159441,1730487044020,-484.14768782,0.00033144,4]
[341159457,1730487045918,-22.47408681,0.00033144,4]
[341159459,1730487045928,-500.0,0.00033144,4]
[341159461,1730487045938,-362.76594678,0.00033144,4]
[341159463,1730487045948,-500.48027611,0.00033144,4]
[341159465,1730487045958,-501.40516746,0.00033144,4]
[341159467,1730487045968,-500.0,0.00033144,4]
[341159468,1730487045977,-505.58074206,0.00033144,4]
[341159469,1730487045987,-506.03530306,0.00033144,4]
[341159470,1730487045996,-501.67577705,0.00033144,4]
[341159471,1730487046006,-501.11269407,0.00033144,4]
[341159472,1730487046016,-500.0,0.00033144,4]
[341159473,1730487046026,-606.0298968,0.00033144,4]
[341159474,1730487046036,-500.0,0.00033144,4]
[341159475,1730487046045,-500.0,0.00033144,4]
[341159476,1730487046055,-1016.86,0.00033144,4]
[341159477,1730487046064,-500.0,0.00033144,4]
[341159478,1730487046074,-519.90854469,0.00033144,4]
[341159479,1730487046083,-293.39584454,0.00033144,7]
[341159480,1730487046094,-343.42169485,0.00033144,7]
[341159481,1730487046104,-500.0,0.00033144,4]
[341159482,1730487046114,-500.0,0.00033144,4]
[341159483,1730487046124,-500.0,0.00033144,4]
[341159484,1730487046133,-503.65975773,0.00033144,4]
[341159485,1730487046143,-501.87358156,0.00033144,4]
[341159486,1730487046153,-502.46448374,0.00033144,4]
[341159487,1730487046163,-635.51,0.00033144,4]
[341159488,1730487046173,-502.16074568,0.00033144,4]
[341159489,1730487046183,-668.39,0.00033144,4]
[341159490,1730487046193,-500.0,0.00033144,4]
[341159491,1730487046203,-500.0,0.00033144,4]
[341159492,1730487046212,-172.08811537,0.00033144,7]
[341159493,1730487046223,-500.0,0.00033145,4]
[341159494,1730487046232,-500.0,0.00033145,4]
[341159495,1730487046243,-403.45045021,0.00033145,4]
[341159496,1730487046253,-500.0,0.00033145,4]
[341159497,1730487046263,-500.0,0.00033145,4]
[341159498,1730487046273,-500.0,0.00033145,4]
[341159499,1730487046283,-500.0,0.00033145,4]
[341159500,1730487046296,-500.0,0.00033145,4]
[341159501,1730487046306,-500.0,0.00033145,4]
[341159502,1730487046316,-500.0,0.00033145,4]
[341159503,1730487046326,-500.0,0.00033145,4]
[341159504,1730487046338,-500.0,0.00033145,4]
[341159505,1730487046348,-500.0,0.00033145,4]
[341159506,1730487046357,-500.0,0.00033145,4]
[341159507,1730487046367,-500.0,0.00033145,4]
[341159508,1730487046378,-500.0,0.00033145,4]
[341159509,1730487046388,-500.0,0.00033145,4]
[341159510,1730487046398,-502.09510416,0.00033145,4]
[341159511,1730487046408,-173.21818613,0.00033145,4]
[341159512,1730487046419,-500.0,0.00033145,4]
[341159513,1730487046431,-510.87994634,0.00033145,4]
[341159514,1730487046440,-500.0,0.00033145,4]
[341159515,1730487046450,-500.0,0.00033145,4]
[341159516,1730487046459,-500.0,0.00033145,4]
[341159517,1730487046468,-500.0,0.00033145,4]
[341159518,1730487046479,-500.0,0.00033145,4]
[341159519,1730487046488,-500.0,0.00033145,4]
[341159520,1730487046498,-500.0,0.00033145,4]
[341159521,1730487046507,-500.0,0.00033145,2]
[341159522,1730487046517,-500.0,0.00033145,4]
[341159523,1730487046526,-1035.69,0.00033145,4]
[341159524,1730487046535,-1547.9,0.00033145,120]
[341159525,1730487046544,-500.0,0.00033145,4]
[341159526,1730487046554,-500.0,0.00033145,4]
[341159527,1730487046564,-501.61851017,0.00033145,4]
[341159528,1730487046574,-500.0,0.00033145,4]
[341159529,1730487046584,-500.0,0.00033145,4]
[341159530,1730487046593,-500.0,0.00033145,4]
[341159531,1730487046603,-500.0,0.00033145,4]
[341159532,1730487046615,-500.0,0.00033145,4]
[341159533,1730487046625,-1017.46,0.00033145,4]
[341159534,1730487046635,-513.09,0.00033145,4]
[341159535,1730487046645,-500.0,0.00033145,4]
[341159536,1730487046655,-501.785324,0.00033145,4]
[341159537,1730487046667,-503.57234986,0.00033145,4]
[341159538,1730487046678,-501.8772885,0.00033145,4]
[341159539,1730487046688,-500.0,0.00033145,4]
[341159540,1730487046697,-501.17588802,0.00033145,4]
[341159541,1730487046707,-507.64144046,0.00033145,4]